bitfinex-derivatives/quotes_ETHF0:USTF0_20210702
["timestamp","ask_amount","ask_price","bid_price","bid_amount"]
[1625227508695,45.2087,2033.6,2032.1,17.784644]
[1625227508790,45.2087,2033.6,2032.2,1.0]
[1625227508939,2.20527,2033.1,2033.0,2.20527]
[1625227509040,4.23827,2033.1,2033.0,2.20527]
[1625227510692,4.23827,2033.1,2032.1,4.759]
[1625227510992,4.23827,2033.1,2032.4,2.20527]
[1625227510993,2.20527,2032.5,2032.4,2.20527]
[1625227511107,4.96867,2032.5,2032.4,2.20527]
[1625227511847,4.96867,2032.5,2032.2,2.20527]
[1625227512955,2.20527,2032.3,2032.2,2.20527]
[1625227517320,5.95487,2032.3,2032.2,2.20527]
[1625227518527,7e-05,2032.3,2032.2,2.20527]
[1625227518625,1.0,2033.7,2032.2,2.20527]
[1625227518729,1.0,2034.5,2032.2,5.34627]
[1625227518826,15.6247,2034.6,2032.2,5.34627]
[1625227518925,2.20527,2033.3,2033.2,2.20527]
[1625227519027,2.20527,2033.3,2033.2,5.10977]
[1625227520378,2.20527,2033.3,2033.2,47.53637]
[1625227521029,4.41054,2033.3,2033.2,47.53637]
[1625227521631,4.41054,2033.3,2033.2,5.10977]
[1625227522047,1.0,2034.5,2033.2,5.10977]
[1625227522136,15.6247,2034.6,2033.2,5.10977]
[1625227522482,1.0,2035.1,2033.2,5.10977]
[1625227522588,1.0,2035.1,2033.6,44.9018]
[1625227522686,1.9992479,2036.0,2033.6,44.9018]
[1625227522784,15.5949,2035.8,2033.6,44.9018]
[1625227522936,15.5949,2035.8,2033.7,17.756415]
[1625227523083,2.20527,2034.9,2034.8,2.20527]
[1625227523186,2.20527,2034.9,2034.8,5.42327]
[1625227523384,1.0,2035.7,2034.8,5.42327]
[1625227523485,15.5949,2035.8,2034.8,5.42327]
[1625227523686,1.99918121,2036.3,2034.8,3.218]
[1625227523886,1.99915029,2036.4,2034.8,3.218]
[1625227524492,2.99895347,2036.5,2034.8,3.218]
[1625227524989,2.20527,2035.4,2035.3,2.20527]
[1625227527618,1.0,2036.4,2035.3,2.20527]
[1625227527717,1.99946156,2036.7,2035.3,4.54967]
[1625227527969,1.99927059,2037.0,2035.3,4.54967]
[1625227528170,1.99905483,2037.1,2035.3,4.54967]
[1625227528822,18.26038415,2037.2,2035.3,4.54967]
[1625227528973,18.26038415,2037.2,2036.2,2.20527]
[1625227529120,2.20527,2036.3,2036.2,1.04448901]
[1625227531030,4.41054,2036.3,2036.2,1.04448901]
[1625227531880,2.20527,2036.3,2036.2,1.04448901]
[1625227532029,1.0,2037.1,2036.2,1.04448901]
[1625227532133,8.56737784,2038.3,2036.2,4.07058901]
[1625227532134,1.99919775,2037.5,2036.2,4.07058901]
[1625227532334,1.99919775,2037.5,2036.7,50.6413]
[1625227532434,1.99919775,2037.5,2036.7,53.8003]
[1625227532534,19.05809582,2037.8,2036.7,53.8003]
[1625227532535,17.34443224,2037.8,2036.7,53.8003]
[1625227532733,15.3453,2037.8,2036.7,53.8003]
[1625227532836,1.99907934,2037.9,2036.7,53.8003]
[1625227533035,2.20527,2037.0,2036.9,2.20527]
[1625227533736,2.20527,2037.0,2036.9,56.54227]
[1625227535942,2.20527,2037.4,2036.9,56.54227]
[1625227536243,2.20527,2037.4,2036.9,2.20527]
[1625227536746,2.20527,2037.4,2036.9,53.15547]
[1625227537046,2.20527,2037.4,2037.3,2.20527]
[1625227537147,2.20527,2037.4,2037.3,4.65827]
[1625227537246,2.20527,2037.6,2037.3,4.65827]
[1625227538200,1.0,2038.3,2037.3,4.65827]
[1625227538353,1.99922334,2038.5,2037.3,4.65827]
[1625227538450,0.52822334,2038.5,2037.3,4.65827]
[1625227538852,0.52822334,2038.5,2038.4,43.446]
[1625227538999,0.52822334,2038.5,2038.4,3.2046]
[1625227539103,5.0606943,2039.2,2038.4,7.61514]
[1625227539501,2.20527,2039.2,2038.4,7.61514]
[1625227540050,5.06006971,2039.2,2038.4,7.61514]
[1625227541064,2.20527,2038.7,2038.4,4.71602763]
[1625227541166,2.20527,2038.7,2038.4,4.41054]
[1625227542018,5.02277,2038.7,2038.4,4.41054]
[1625227543084,2.20527,2038.6,2038.4,4.41054]
[1625227544185,2.20527,2038.6,2038.4,3.25076734]
[1625227545851,2.20527,2038.7,2038.4,3.25076734]
[1625227547115,2.20527,2038.5,2038.4,3.25076734]
[1625227547203,5.03397,2038.5,2038.4,3.25076734]
[1625227547458,2.8287,2038.5,2038.4,3.25076734]
[1625227548608,2.20527,2038.7,2038.4,3.25076734]
[1625227551230,2.20527,2039.1,2038.4,3.25076734]
[1625227553183,2.20527,2038.7,2038.4,3.25076734]
[1625227553282,4.49447,2038.7,2038.4,3.25076734]
[1625227555745,2.20527,2038.7,2038.4,3.25076734]
[1625227557200,2.20527,2039.1,2038.4,3.25076734]
[1625227557299,2.20527,2039.1,2038.8,2.20527]
[1625227557650,2.20527,2039.1,2038.4,1.04549734]
[1625227558351,5.00107,2039.1,2038.4,1.04549734]
[1625227559311,5.00107,2039.1,2039.0,2.20527]
[1625227559610,5.00107,2039.1,2039.0,1.04590278]
[1625227561926,2.20527,2039.1,2039.0,1.04590278]
[1625227563327,2.20527,2039.1,2039.0,3.25117278]
[1625227565790,5.40777,2039.1,2039.0,3.25117278]
[1625227566694,5.40777,2039.1,2039.0,53.62467278]
[1625227566791,2.20527,2039.1,2039.0,53.62467278]
[1625227567042,1.0,2039.9,2039.0,53.62467278]
[1625227567043,0.05,2040.0,2039.0,53.62467278]
[1625227567395,2.25527,2040.0,2039.6,2.20527]
[1625227567498,2.25527,2040.0,2039.6,5.03747]
[1625227568899,0.05,2040.0,2039.6,5.03747]
[1625227569406,0.05,2040.0,2039.9,2.20527]
[1625227571311,0.05,2040.0,2039.9,53.02147]
[1625227571559,0.05,2040.0,2039.9,2.20527]
[1625227572225,0.05,2040.0,2039.9,47.58867]
[1625227572630,0.05,2040.0,2039.9,2.20527]
[1625227576238,0.05,2040.0,2039.9,4.50987]
[1625227577993,0.05,2040.0,2039.9,2.20527]
[1625227579948,3.2209,2040.0,2039.9,2.20527]
[1625227582150,0.05,2040.0,2039.9,5.69297]
[1625227584811,2.846,2040.0,2039.9,2.20527]
[1625227585830,2.846,2040.0,2039.9,62.56197]
[1625227585925,0.05,2040.0,2039.9,62.56197]
[1625227587582,0.05,2040.0,2039.9,2.20527]
[1625227588084,2.5206,2040.0,2039.9,2.20527]
[1625227590591,0.05,2040.0,2039.9,2.20527]
[1625227591344,0.05,2040.0,2039.9,20.039388]
[1625227595299,0.05,2040.0,2039.9,2.20527]
[1625227596807,0.05,2040.0,2039.9,20.095545]
[1625227597855,0.05,2040.0,2039.9,2.20527]
[1625227598855,0.05,2040.0,2039.9,4.67847]
[1625227599607,0.05,2040.0,2039.9,22.326266]
[1625227602020,0.05,2040.0,2039.9,4.67847]
[1625227604931,0.05,2040.0,2039.9,2.20527]
[1625227605284,2.3743,2040.0,2039.9,2.20527]
[1625227607510,0.05,2040.0,2039.9,2.20527]
[1625227611711,2.25527,2040.0,2039.9,2.20527]
[1625227613616,0.05,2040.0,2039.9,2.20527]
[1625227615216,0.05,2040.0,2039.9,5.82997]
[1625227616888,0.05,2040.0,2039.9,23.617083]
[1625227621653,0.05,2040.0,2039.9,28.617083]
[1625227622018,0.05,2040.0,2039.9,23.617083]
[1625227637413,0.05,2040.0,2039.9,19.992383]
[1625227637513,3.317,2040.0,2039.9,19.992383]
[1625227638466,0.05,2040.0,2039.9,19.992383]
[1625227641126,0.05,2040.0,2039.9,2.20527]
[1625227652926,0.05,2040.0,2039.9,20.019529]
[1625227656741,0.05,2040.0,2039.9,65.858729]
[1625227657988,0.05,2040.0,2039.9,20.019529]
[1625227658387,0.05,2040.0,2039.9,2.20527]
[1625227665396,0.05,2040.0,2039.9,19.935077]
[1625227679970,0.05,2040.0,2039.9,2.20527]
[1625227680874,0.05,2040.0,2039.9,20.148878]
[1625227682577,0.05,2040.0,2039.9,22.750978]
[1625227683680,0.05,2040.0,2039.9,2.20527]
[1625227685288,2.7943,2040.0,2039.9,2.20527]
[1625227696030,0.05,2040.0,2039.9,2.20527]
[1625227700440,0.05,2040.0,2039.9,5.68777]
[1625227705503,2.6788,2040.0,2039.9,2.20527]
[1625227708008,4.12334676,2040.0,2039.9,2.20527]
[1625227708609,4.12334676,2040.0,2039.6,2.20527]
[1625227709010,1.44474045,2039.7,2039.6,2.20527]
[1625227709211,56.26664045,2039.7,2039.6,2.20527]
[1625227709562,56.26664045,2039.7,2039.2,1.42041544]
[1625227710065,1.44469866,2039.4,2038.8,1.42131162]
[1625227710162,2.20527,2039.0,2038.8,3.62658162]
[1625227711424,2.20527,2039.0,2038.8,2.20527]
[1625227712075,2.20527,2039.0,2038.8,61.95191981]
[1625227713478,2.20527,2039.0,2038.8,60.53147]
[1625227716390,1.44345593,2039.5,2038.8,63.33597]
[1625227716740,1.44274749,2039.9,2039.0,1.42043438]
[1625227717038,1.44274749,2039.9,2039.1,19.24377569]
[1625227717442,1.44274749,2039.9,2039.1,1.42020069]
[1625227717545,1.44274749,2039.9,2039.8,44.4126]
[1625227717642,1.49253359,2040.0,2039.8,46.8275]
[1625227718295,4.41054,2039.9,2039.8,46.8275]
[1625227718395,0.05,2040.0,2039.8,46.8275]
[1625227719499,0.05,2040.0,2039.8,2.4149]
[1625227720249,0.05,2040.0,2039.9,2.20527]
[1625227721865,1.49246438,2040.0,2039.9,2.20527]
[1625227722677,0.05,2040.0,2039.9,2.20527]
[1625227722827,0.05,2040.0,2039.9,5.98797]
[1625227726594,1.44226434,2040.3,2039.9,5.98797]
[1625227726792,0.32826434,2040.3,2039.9,5.98797]
[1625227726997,1.44199612,2040.7,2040.0,17.92771]
[1625227727243,2.41099612,2040.7,2040.0,17.92771]
[1625227727344,0.969,2040.7,2040.0,17.92771]
[1625227727744,2.01852807,2040.9,2040.0,17.92771]
[1625227728345,2.01852807,2040.9,2040.8,4.41054]
[1625227729497,2.88330834,2040.9,2040.8,4.41054]
[1625227730149,2.01831744,2040.9,2040.8,4.41054]
[1625227730648,2.88329831,2040.9,2040.8,4.41054]
[1625227730899,2.88329831,2040.9,2039.7,1.98316628]
[1625227731005,3.1317,2040.9,2039.6,1.98422977]
[1625227731254,2.01871456,2040.4,2039.5,15.0648]
[1625227731403,4.96211456,2040.4,2039.5,15.0648]
[1625227731504,4.96211456,2040.4,2039.3,1.98614239]
[1625227731660,2.0188164,2040.3,2039.2,1.98671328]
[1625227731904,2.01888488,2040.2,2039.0,1.98750484]
[1625227732309,2.20527,2040.1,2040.0,2.20527]
[1625227732406,4.22430494,2040.1,2040.0,2.20527]
[1625227734064,4.22430494,2040.1,2040.0,7e-05]
[1625227734162,4.22430494,2040.1,2039.8,2.20527]
[1625227734272,5.089635,2040.1,2039.8,2.20527]
[1625227734363,2.20527,2039.9,2039.8,2.20527]
[1625227734462,5.96177,2039.9,2039.8,2.20527]
[1625227734913,5.96177,2039.9,2039.4,2.20527]
[1625227736369,2.20527,2039.5,2039.4,2.20527]
[1625227738929,2.20527,2039.5,2039.0,2.20527]
[1625227739580,2.20527,2039.5,2039.0,3.17467]
[1625227739681,2.01908054,2039.6,2039.0,3.17467]
[1625227739831,2.01850846,2039.7,2039.0,5.65177]
[1625227740086,2.01794231,2040.3,2039.6,47.8253]
[1625227740185,2.01794231,2040.3,2039.6,51.3234]
[1625227740434,2.20527,2040.3,2040.2,4.41054]
[1625227740583,4.22301334,2040.5,2040.2,4.41054]
[1625227740890,2.20527,2040.5,2040.2,4.41054]
[1625227744309,2.20527,2040.5,2040.3,17.698499]
[1625227745213,2.20527,2040.8,2040.3,17.698499]
[1625227745661,2.01696962,2041.2,2040.3,17.698499]
[1625227745760,0.46696962,2041.2,2040.4,5.0]
[1625227745959,0.83925479,2041.3,2040.4,5.0]
[1625227746111,0.83925479,2041.3,2041.2,46.486]
[1625227746214,0.35625479,2041.3,2041.2,49.8055]
[1625227746312,2.88085769,2041.7,2041.2,49.8055]
[1625227746411,5.08612769,2041.7,2041.2,72.023768]
[1625227746764,2.20527,2041.7,2041.2,72.023768]
[1625227748317,2.20527,2041.7,2041.2,25.537768]
[1625227748417,2.20527,2041.7,2041.6,2.20527]
[1625227757627,2.20527,2041.7,2041.2,2.20527]
[1625227757728,4.59447,2041.7,2041.2,2.20527]
[1625227759181,4.59447,2041.7,2040.8,2.20527]
[1625227760432,2.20527,2041.1,2040.8,2.20527]
[1625227762501,2.20527,2041.1,2041.0,2.20527]
[1625227762652,4.59447,2041.7,2041.0,2.20527]
[1625227762653,2.20527,2041.7,2041.0,2.20527]
[1625227762853,2.20527,2041.7,2041.0,19.985854]
[1625227763605,2.20527,2041.7,2041.0,2.20527]
[1625227764453,2.20527,2041.2,2041.0,2.20527]
[1625227765007,2.20527,2041.2,2040.8,2.20527]
[1625227766009,2.20527,2041.7,2041.1,44.5704]
[1625227766108,2.20527,2041.7,2041.1,47.8713]
[1625227766359,2.20527,2041.7,2041.2,17.716914]
[1625227766458,2.20527,2041.7,2041.6,4.41054]
[1625227766559,2.20527,2041.7,2041.6,7.10114]
[1625227768471,1.73697,2041.7,2041.6,7.10114]
[1625227768572,0.89867,2041.7,2041.6,7.10114]
[1625227769022,0.89867,2041.7,2041.6,24.774473]
[1625227778994,0.89867,2041.7,2041.6,7.10114]
[1625227779092,0.89867,2041.7,2041.6,4.41054]
[1625227783186,0.89867,2041.7,2040.4,1.0]
[1625227783337,0.89867,2041.7,2038.5,55.14169879]
[1625227783338,4.10437,2041.7,2039.8,1.98]
[1625227783449,1.0,2041.6,2039.8,0.98]
[1625227783844,1.0,2041.6,2039.9,17.785762]
[1625227784339,1.0,2041.6,2039.9,22.544762]
[1625227784592,1.0,2041.6,2041.2,2.20527]
[1625227784694,4.10437,2041.7,2041.2,2.20527]
[1625227785041,4.10437,2041.7,2040.0,1.0]
[1625227785142,5.10437,2041.7,2039.9,4.759]
[1625227785706,5.10437,2041.7,2040.0,17.671502]
[1625227786596,2.20527,2041.1,2041.0,2.20527]
[1625227786745,2.20527,2041.1,2040.0,17.671502]
[1625227786947,2.20527,2041.1,2039.9,4.759]
[1625227787148,7.20527,2041.1,2039.9,4.759]
[1625227787250,2.20527,2041.1,2039.9,4.759]
[1625227787348,47.3569,2040.4,2039.9,4.759]
[1625227787448,3.6866,2040.4,2039.9,4.759]
[1625227787559,3.6866,2040.4,2039.0,4.759]
[1625227788213,3.6866,2040.4,2039.1,17.681651]
[1625227788559,1.0,2041.0,2039.1,17.681651]
[1625227788660,1.0,2041.0,2039.7,2.20527]
[1625227788761,15.9027,2041.1,2039.7,5.51337]
[1625227789010,15.9027,2041.1,2039.8,17.936248]
[1625227789612,15.9027,2041.1,2039.8,22.695248]
[1625227789763,15.9027,2041.1,2039.8,80.083948]
[1625227789966,15.9027,2041.1,2039.8,22.695248]
[1625227790464,15.9027,2041.1,2039.8,26.427948]
[1625227790718,18.10797,2041.1,2040.6,2.20527]
[1625227790814,18.10797,2041.1,2040.6,5.04847]
[1625227791016,2.20527,2041.1,2041.0,51.9841]
[1625227792619,2.20527,2041.1,2041.0,54.18937]
[1625227792719,2.20527,2041.1,2041.0,2.20527]
[1625227792967,2.20527,2041.1,2041.0,19.887079]
[1625227793868,2.20527,2041.1,2041.0,63.976579]
[1625227795275,2.20527,2041.1,2041.0,19.887079]
[1625227795476,2.20527,2041.1,2041.0,2.20527]
[1625227796182,2.20527,2041.1,2040.6,2.20527]
[1625227796682,2.20527,2040.7,2040.6,2.20527]
[1625227797036,2.20527,2040.7,2040.6,19.879734]
[1625227797583,2.20527,2041.1,2040.6,19.879734]
[1625227797684,4.759,2042.9,2040.6,19.879734]
[1625227797788,4.759,2042.9,2040.6,25.861234]
[1625227798137,4.759,2042.9,2041.1,1.15]
[1625227798240,4.759,2042.9,2041.1,4.2464]
[1625227798536,19.75350051,2043.3,2042.4,41.4476]
[1625227798689,2.20527,2042.5,2042.4,43.9359]
[1625227799437,2.20527,2042.5,2042.4,2.4883]
[1625227799739,2.20527,2042.5,2042.1,2.20527]
[1625227800341,2.20527,2042.5,2041.5,71.4664]
[1625227800441,2.20527,2042.5,2040.5,8.463]
[1625227800644,2.20527,2042.5,2041.6,2.20527]
[1625227800645,2.20527,2042.1,2041.6,2.20527]
[1625227801042,4.73517,2042.1,2041.7,17.689077]
[1625227801292,4.73517,2042.1,2041.1,1.15]
[1625227801697,4.73517,2042.1,2039.8,3.7327]
[1625227801797,4.73517,2042.1,2040.3,19.5699]
[1625227801998,4.73517,2042.1,2041.2,17.6302]
[1625227802097,4.73517,2042.1,2041.2,21.1214]
[1625227802247,4.73517,2042.1,2041.2,3.4912]
[1625227802498,4.73517,2042.1,2041.3,17.927248]
[1625227802699,2.20527,2041.7,2041.4,2.20527]
[1625227803102,2.20527,2041.7,2041.5,17.878916]
[1625227803300,2.20527,2041.7,2041.4,2.20527]
[1625227803802,4.53597,2041.7,2041.4,2.20527]
[1625227804103,4.53597,2041.7,2040.3,1.0]
[1625227804204,4.53597,2041.7,2040.0,15.38]
[1625227804303,5.53597,2041.7,2040.0,15.38]
[1625227804709,2.20527,2040.4,2040.3,2.20527]
[1625227805911,2.20527,2040.4,2040.1,2.20527]
[1625227806660,2.20527,2040.2,2040.1,2.20527]
[1625227806760,5.10457,2040.2,2038.9,16.0184]
[1625227807060,5.10457,2040.2,2037.8,9.90372068]
[1625227807210,5.10457,2040.2,2038.3,3.6887642]
[1625227807310,6.10457,2040.2,2038.3,3.6887642]
[1625227807758,6.10457,2040.2,2038.4,17.671481]
[1625227807859,6.10457,2040.2,2038.4,67.899481]
[1625227808059,3.20527,2040.2,2038.4,67.899481]
[1625227808327,3.20527,2040.2,2038.4,71.58771217]
[1625227808524,2.20527,2040.2,2038.4,71.58771217]
[1625227808726,2.20527,2039.6,2039.4,2.20527]
[1625227809532,5.0,2041.5,2039.4,2.20527]
[1625227809631,6.0,2041.5,2039.4,2.20527]
[1625227809731,1.0,2041.5,2039.4,2.20527]
[1625227809984,1.0,2041.5,2039.5,17.763906]
[1625227810080,58.02232701,2041.8,2039.5,17.763906]
[1625227810685,2.20527,2039.8,2039.7,2.20527]
[1625227812790,4.41054,2039.8,2039.4,2.20527]
[1625227813840,4.41054,2039.8,2039.5,17.863588]
[1625227813942,4.41054,2039.8,2039.5,20.605988]
[1625227814042,4.41054,2039.8,2039.5,2.7424]
[1625227816697,4.41054,2039.8,2039.4,2.20527]
[1625227817353,4.41054,2039.8,2039.5,17.846063]
[1625227818101,4.41054,2039.8,2038.0,4.759]
[1625227818200,7.40024,2039.8,2038.1,4.53177329]
[1625227818551,7.40024,2039.8,2037.9,19.59967689]
[1625227818755,2.20527,2039.0,2038.9,2.20527]
[1625227819452,5.92297,2039.0,2038.9,2.20527]
[1625227820759,2.20527,2039.0,2038.9,2.20527]
[1625227821207,1.0,2040.4,2038.9,2.20527]
[1625227821361,15.9485,2040.6,2038.9,20.004243]
[1625227821607,20.9485,2040.6,2038.9,20.004243]
[1625227821758,20.9485,2040.6,2038.9,2.20527]
[1625227822057,15.9485,2040.6,2038.9,2.20527]
[1625227822159,15.9485,2040.6,2038.9,5.69017]
[1625227822709,15.9485,2040.6,2039.0,17.859564]
[1625227822810,2.20527,2039.1,2039.0,17.859564]
[1625227833101,2.20527,2039.1,2038.9,2.20527]
[1625227834902,2.20527,2039.0,2038.9,2.20527]
[1625227837707,3.6286,2040.7,2038.9,2.20527]
[1625227837906,4.6286,2040.7,2038.9,2.20527]
[1625227838005,5.977,2040.5,2038.9,2.20527]
[1625227838111,55.998,2040.3,2038.9,2.20527]
[1625227838457,50.998,2040.3,2038.9,2.20527]
[1625227838808,2.20527,2039.0,2038.9,2.20527]
[1625227844683,2.20527,2039.0,2038.9,19.958629]
[1625227845547,2.20527,2039.0,2038.9,2.20527]
[1625227846152,2.20527,2039.0,2037.6,3.68689381]
[1625227846153,4.80827,2039.0,2037.6,3.68689381]
[1625227846257,4.80827,2039.0,2037.4,8.22694483]
[1625227846355,4.80827,2039.0,2037.4,3.68922937]
[1625227846657,4.80827,2039.0,2037.0,18.52381145]
[1625227846859,2.20527,2037.5,2037.3,2.20527]
[1625227846959,5.25947,2037.5,2037.3,2.20527]
[1625227848758,2.20527,2037.5,2037.3,2.20527]
[1625227848960,4.41054,2037.5,2037.4,46.8973]
[1625227849064,4.41054,2037.5,2037.4,50.5833]
[1625227849516,4.41054,2037.5,2037.4,3.686]
[1625227850415,4.41054,2037.5,2037.3,2.20527]
[1625227855042,1.0,2038.4,2037.3,2.20527]
[1625227855192,1.0,2038.7,2037.3,5.30797]
[1625227855292,15.996,2038.8,2037.3,5.30797]
[1625227855442,15.996,2038.8,2037.4,17.834641]
[1625227857058,2.20527,2038.4,2038.3,2.20527]
[1625227859059,4.41054,2038.4,2038.3,2.20527]
[1625227860460,4.41054,2038.4,2038.1,2.20527]
[1625227861512,4.41054,2038.4,2037.7,2.20527]
[1625227862215,4.41054,2038.4,2037.8,17.713358]
[1625227862967,4.41054,2037.9,2037.7,2.20527]
[1625227865116,4.41054,2037.9,2037.4,2.20527]
[1625227867021,2.20527,2037.5,2036.3,1.0]
[1625227867121,2.20527,2037.5,2036.2,59.3513]
[1625227867723,2.20527,2037.5,2036.3,17.684758]
[1625227867822,2.20527,2037.5,2036.3,21.043858]
[1625227869034,2.20527,2037.5,2037.0,2.20527]
[1625227869986,2.20527,2037.5,2037.1,17.847297]
[1625227871106,2.20527,2037.2,2037.1,17.847297]
[1625227872153,2.20527,2037.2,2037.1,74.766697]
[1625227872454,2.20527,2037.2,2037.1,17.847297]
[1625227873005,2.20527,2037.2,2037.0,2.20527]
[1625227874157,2.20527,2037.2,2037.1,49.6487]
[1625227874259,2.20527,2037.5,2037.1,52.1708]
[1625227874360,2.20527,2037.5,2037.1,70.113762]
[1625227877012,2.20527,2037.5,2037.3,2.20527]
[1625227877312,2.20527,2037.5,2037.4,17.707875]
[1625227878615,2.20527,2037.8,2037.4,17.707875]
[1625227879068,2.20527,2038.2,2037.7,2.20527]
[1625227879165,2.20527,2038.2,2037.7,5.14527]
[1625227879416,2.20527,2038.2,2038.0,58.9864]
[1625227879566,1.0,2039.1,2038.0,58.9864]
[1625227879676,15.4159,2039.2,2038.0,58.9864]
[1625227879871,15.4159,2039.2,2038.1,17.946588]
[1625227881071,2.20527,2039.0,2038.9,2.20527]
[1625227881171,2.20527,2039.0,2038.9,5.42787]
[1625227883074,4.41054,2039.0,2038.9,5.42787]
[1625227884135,4.41054,2039.0,2038.9,2.20527]
[1625227888550,4.41054,2039.0,2038.0,58.9864]
[1625227888801,4.41054,2039.0,2037.8,15.4884]
[1625227889103,2.20527,2038.1,2037.9,2.20527]
[1625227889205,5.18897,2038.1,2037.9,2.20527]
[1625227889556,5.18897,2038.1,2037.7,2.20527]
[1625227891115,2.20527,2037.8,2037.7,2.20527]
[1625227892077,2.20527,2037.8,2037.3,2.20527]
[1625227892770,2.20527,2037.8,2036.9,58.8637]
[1625227893124,2.20527,2037.2,2037.0,2.20527]
[1625227893221,5.09397,2037.2,2037.0,2.20527]
[1625227893422,5.09397,2037.2,2037.1,17.837036]
[1625227894922,5.09397,2037.2,2036.6,2.85670395]
[1625227895126,4.41054,2036.7,2036.6,2.85670395]
[1625227895274,6.73244,2036.7,2036.6,2.85670395]
[1625227895474,53.78994,2036.7,2035.9,5.06816723]
[1625227895779,53.78994,2036.7,2035.9,2.86289723]
[1625227895997,53.78994,2036.7,2035.8,2.86297001]
[1625227896278,53.78994,2036.7,2035.4,4.58075202]
[1625227896279,53.78994,2036.7,2035.4,2.86616113]
[1625227896678,53.78994,2036.7,2035.2,2.864753]
[1625227896679,58.78994,2036.7,2035.2,2.864753]
[1625227897031,58.78994,2036.7,2035.0,2.86456578]
[1625227897179,2.20527,2035.2,2035.1,2.20527]
[1625227897529,1.04541592,2035.2,2035.1,5.06930444]
[1625227897630,3.92461592,2035.2,2035.1,22.95045344]
[1625227897731,60.21851592,2035.2,2035.1,20.086419]
[1625227897940,3.92461592,2035.2,2035.1,2.20527]
[1625227899085,6.12988592,2035.2,2035.1,2.20527]
[1625227902500,6.12988592,2035.2,2035.1,19.921477]
[1625227902850,6.12988592,2035.2,2034.4,2.86008413]
[1625227903102,6.12988592,2035.2,2034.3,4.759]
[1625227903202,3.92461592,2035.2,2034.8,2.20527]
[1625227903503,59.61481592,2035.2,2034.8,2.20527]
[1625227903609,3.92461592,2035.2,2034.8,2.20527]
[1625227905166,2.20527,2034.9,2034.8,2.20527]
[1625227907818,5.34347,2034.9,2034.8,2.20527]
[1625227908924,5.34347,2034.9,2034.6,2.20527]
[1625227909229,2.20527,2034.8,2034.6,2.20527]
[1625227909628,2.20527,2034.8,2034.6,6.96427]
[1625227909725,2.20527,2034.8,2034.7,17.979827]
[1625227910026,2.20527,2034.8,2034.6,6.96427]
[1625227910128,4.65827,2034.8,2034.6,6.96427]
[1625227911128,1.0,2035.6,2034.6,6.96427]
[1625227911277,2.20527,2035.6,2035.5,2.20527]
[1625227911429,2.20527,2035.6,2035.5,5.95397]
[1625227912533,2.20527,2035.6,2035.5,3.7487]
[1625227912634,2.20527,2035.6,2034.6,4.759]
[1625227912734,5.79987,2035.6,2034.6,4.759]
[1625227913245,4.41054,2034.7,2034.6,4.759]
[1625227913447,2.20527,2034.7,2034.6,4.759]
[1625227913746,1.0,2035.5,2034.6,4.759]
[1625227913847,1.0,2035.9,2034.6,4.759]
[1625227913997,46.4695,2036.0,2034.6,4.759]
[1625227914101,46.4695,2036.0,2034.6,22.549273]
[1625227915202,46.4695,2036.0,2034.6,4.759]
[1625227915303,2.20527,2034.9,2034.8,2.20527]
[1625227915402,2.20527,2034.9,2034.5,2.20527]
[1625227916213,2.8973,2035.5,2034.5,2.20527]
[1625227917266,2.20527,2034.6,2034.5,2.20527]
[1625227919076,5.75137,2034.6,2034.5,2.20527]
[1625227920630,2.20527,2034.6,2034.5,2.20527]
[1625227920732,1.0,2035.4,2034.5,2.20527]
[1625227920832,1.0,2036.9,2034.5,5.28677]
[1625227920982,14.8494,2035.9,2034.5,5.28677]
[1625227921182,14.8494,2035.9,2034.6,17.969204]
[1625227921334,2.20527,2035.6,2035.5,2.20527]
[1625227921430,2.20527,2035.6,2035.5,5.45597]
[1625227922094,1.0,2036.7,2035.5,5.45597]
[1625227922244,15.02,2036.8,2035.5,5.45597]
[1625227922594,15.02,2036.8,2035.6,17.693696]
[1625227923004,15.02,2036.8,2035.5,5.45597]
[1625227923354,2.20527,2036.2,2036.0,2.20527]
[1625227923451,2.20527,2036.2,2036.0,4.84377]
[1625227924658,2.20527,2036.2,2036.1,17.790477]
[1625227925407,2.20527,2036.2,2036.1,19.995747]
[1625227926211,2.20527,2036.2,2036.1,2.20527]
[1625227929720,2.20527,2036.2,2036.0,2.20527]
[1625227929820,5.19937,2036.2,2036.0,2.20527]
[1625227929970,5.19937,2036.2,2035.0,11.745]
[1625227930521,5.19937,2036.2,2035.0,4.759]
[1625227930621,5.19937,2036.2,2034.1,14.766]
[1625227930719,1.0,2036.1,2034.1,14.766]
[1625227931290,1.0,2036.1,2034.2,17.95219]
[1625227931387,2.20527,2034.8,2034.5,2.20527]
[1625227931641,2.20527,2034.8,2034.5,6.96427]
[1625227932387,1.04487323,2034.8,2034.5,6.96427]
[1625227932687,1.04487323,2034.8,2034.6,17.919176]
[1625227932887,1.04487323,2034.8,2034.5,6.96427]
[1625227933393,1.04487323,2034.8,2034.7,2.20527]
[1625227942274,1.04487323,2034.8,2034.7,4.62347]
[1625227942774,1.0,2035.6,2034.7,4.62347]
[1625227942876,15.595,2036.1,2034.7,4.62347]
[1625227943326,15.595,2036.1,2034.8,17.821793]
[1625227943428,2.20527,2035.3,2035.1,2.20527]
[1625227948144,2.20527,2035.3,2035.2,55.5309]
[1625227948242,2.20527,2035.3,2035.2,59.1047]